bitfinex/quotes_BTCUSD_20260221
["timestamp","ask_amount","ask_price","bid_price","bid_amount"]
[1771688848087,0.0727506,68728.0,68718.0,0.07276089]
[1771688848300,0.0727506,68728.0,68720.0,0.07275888]
[1771688848490,0.02467687,68731.0,68720.0,0.07275888]
[1771688848665,0.09750516,68731.0,68721.0,0.07275796]
[1771688849240,0.07274974,68729.0,68720.0,0.07275888]
[1771688849507,0.02475687,68731.0,68718.0,0.07276077]
[1771688849508,0.07274843,68730.0,68721.0,0.07275792]
[1771688849713,0.33819087,68730.0,68721.0,0.07275792]
[1771688850065,0.26544244,68730.0,68721.0,0.07275792]
[1771688850272,0.07275127,68728.0,68720.0,0.07275878]
[1771688850507,0.07274981,68729.0,68720.0,0.07275878]
[1771688850821,0.07282981,68729.0,68720.0,0.07275878]
[1771688851017,0.07282981,68729.0,68721.0,0.07275788]
[1771688851172,0.07282981,68729.0,68721.0,0.07247058]
[1771688851604,0.33827225,68729.0,68720.0,0.07275879]
[1771688851806,0.07275075,68728.0,68720.0,0.07275879]
[1771688852013,0.07283075,68728.0,68720.0,0.07275879]
[1771688852193,0.24076557,68727.0,68716.0,0.2910506]
[1771688852388,0.02467687,68726.0,68714.0,0.29106028]
[1771688852590,0.02467687,68726.0,68719.0,0.07275961]
[1771688852789,8e-05,68725.0,68719.0,0.07275961]
[1771688853527,8e-05,68725.0,68712.0,0.31549492]
[1771688853726,8e-05,68725.0,68717.0,0.07276116]
[1771688854091,0.07275479,68724.0,68716.0,0.00022]
[1771688854318,0.07276026,68719.0,68711.0,0.07285913]
[1771688854653,0.0002,68728.0,68711.0,0.07285913]
[1771688854654,0.0002,68728.0,68716.0,0.29105125]
[1771688854842,0.0002,68728.0,68711.0,9.061e-05]
[1771688854843,0.07275301,68726.0,68718.0,0.07276111]
[1771688855042,0.07275301,68726.0,68717.0,0.07276193]
[1771688855402,0.0002,68728.0,68712.0,0.02442691]
[1771688855623,0.0002,68728.0,68715.0,0.07276326]
[1771688855624,0.02467687,68724.0,68715.0,0.07276326]
[1771688855818,0.07275767,68722.0,68713.0,0.0727657]
[1771688856404,0.07275767,68722.0,68713.0,0.0726857]
[1771688856609,0.07275767,68722.0,68714.0,0.07276513]
[1771688856821,0.07275804,68721.0,68714.0,0.07276513]
[1771688857078,0.07275804,68721.0,68711.0,0.07285712]
[1771688857483,0.07275902,68720.0,68711.0,9.061e-05]
[1771688857688,0.07275659,68723.0,68711.0,9.061e-05]
[1771688857890,0.07275807,68721.0,68713.0,0.07276588]
[1771688858667,0.07275807,68721.0,68711.0,9.061e-05]
[1771688858959,0.07275902,68720.0,68712.0,0.07276728]
[1771688859936,0.07275902,68720.0,68707.0,0.31551702]
[1771688859937,0.17476,68722.0,68697.0,0.02398527]
[1771688860116,0.07276943,68711.0,68700.0,0.07293977]
[1771688860486,0.07277307,68707.0,68700.0,0.00016]
[1771688860661,0.22906075,68711.0,68700.0,0.00016]
[1771688860878,0.07277116,68709.0,68701.0,0.07277831]
[1771688861077,0.07277116,68709.0,68700.0,0.00016]
[1771688861078,0.07276881,68711.0,68703.0,0.07277613]
[1771688861285,0.29105302,68718.0,68700.0,0.00016]
[1771688861490,0.35799528,68722.0,68694.0,0.02398527]
[1771688861491,0.0727782,68702.0,68694.0,0.02398527]
[1771688861665,0.0727782,68702.0,68694.0,0.09677171]
[1771688861864,0.0727782,68702.0,68698.0,0.00022]
[1771688862095,0.07278025,68700.0,68698.0,0.00022]
[1771688863112,0.07278126,68699.0,68691.0,0.17488]
[1771688863315,0.07289777,68699.0,68691.0,0.24766951]
[1771688863459,0.07289777,68699.0,68692.0,0.07278864]
[1771688863460,0.00011651,68699.0,68692.0,0.07278864]
[1771688863660,0.00011651,68699.0,68691.0,0.17488]
[1771688864034,0.00011651,68699.0,68693.0,0.07278762]
[1771688864334,0.00011651,68699.0,68694.0,0.0727858]
[1771688865311,0.00011651,68699.0,68695.0,0.07278543]
[1771688867095,0.00011651,68699.0,68695.0,0.0967707]
[1771688867296,0.07277727,68703.0,68695.0,0.0977707]
[1771688867503,0.07276992,68710.0,68702.0,0.07277751]
[1771688867703,0.07277156,68709.0,68700.0,0.23566227]
[1771688868513,0.07277181,68708.0,68700.0,0.23566227]
[1771688868750,0.07277181,68708.0,68700.0,0.2355186]
[1771688868930,0.00016,68740.0,68695.0,0.001]
[1771688869137,0.07276856,68711.0,68703.0,0.09676137]
[1771688869332,0.07276856,68711.0,68702.0,0.07277601]
[1771688869773,0.0727739,68706.0,68699.0,0.02398527]
[1771688870123,0.07277396,68706.0,68699.0,0.02398527]
[1771688870317,0.07277396,68706.0,68698.0,0.07278214]
[1771688870523,0.07277396,68706.0,68699.0,0.07278125]
[1771688871438,0.07277295,68707.0,68699.0,0.07278125]
[1771688871638,0.07277388,68706.0,68699.0,0.07278125]
[1771688871860,0.07277308,68707.0,68699.0,0.07278125]
[1771688872375,0.25308177,68713.0,68696.0,0.07278444]
[1771688872675,0.07277052,68710.0,68701.0,0.07277842]
[1771688873173,0.0727759,68705.0,68697.0,0.02398527]
[1771688873390,0.07276113,68718.0,68700.0,0.0727792]
[1771688873590,0.07277187,68708.0,68700.0,0.0727792]
[1771688873803,0.07277302,68707.0,68700.0,0.16288293]
[1771688874181,0.07277302,68707.0,68699.0,0.09676593]
[1771688874701,0.07277419,68706.0,68699.0,0.07278066]
[1771688875061,0.07277419,68706.0,68698.0,0.07278227]
[1771688875382,0.07277187,68708.0,68699.0,0.07278121]
[1771688875383,0.07277315,68707.0,68699.0,0.07278121]
[1771688876480,0.07277385,68706.0,68697.0,0.07278277]
[1771688876682,0.31509878,68711.0,68697.0,0.0727832]
[1771688876683,0.07277564,68705.0,68697.0,0.0727832]
[1771688877206,0.07277564,68705.0,68699.0,0.00022]
[1771688878411,0.07277604,68704.0,68699.0,0.00022]
[1771688879011,0.16288293,68710.0,68695.0,0.025]
[1771688879012,0.07277771,68703.0,68695.0,0.025]
[1771688879220,0.0727763,68704.0,68696.0,0.07278427]
[1771688880201,0.07277737,68703.0,68695.0,0.09778549]
[1771688880411,0.07277623,68704.0,68696.0,0.07278391]
[1771688880554,0.07277623,68704.0,68697.0,0.07278332]
[1771688881305,0.07277623,68704.0,68696.0,0.07278422]
[1771688882187,0.07277788,68703.0,68695.0,0.09778515]
[1771688882515,0.22906075,68706.0,68695.0,0.025]
[1771688882817,0.07277498,68705.0,68695.0,0.025]
[1771688883027,0.07277412,68706.0,68695.0,0.025]
[1771688883247,0.0727749,68705.0,68696.0,0.07278243]
[1771688884324,0.07277617,68704.0,68697.0,0.0727833]
[1771688885925,0.07277802,68703.0,68695.0,0.09778345]
[1771688886697,0.07277802,68703.0,68696.0,0.00022]
[1771688888671,0.0727785,68702.0,68696.0,0.00022]
[1771688889155,0.07277802,68703.0,68696.0,0.00022]
[1771688891166,0.07277833,68702.0,68696.0,0.00022]
[1771688891350,0.07277803,68704.0,68696.0,0.07300348]
[1771688891556,0.07277513,68705.0,68697.0,0.07278269]
[1771688891758,0.09679391,68707.0,68699.0,0.07278046]
[1771688892203,0.07277391,68706.0,68699.0,0.07278046]
[1771688893511,0.07277734,68703.0,68696.0,0.00022]
[1771688894197,0.07277629,68704.0,68696.0,0.07300408]
[1771688895021,0.07277735,68703.0,68696.0,0.07300408]
[1771688895173,0.07277629,68704.0,68696.0,0.07300408]
[1771688897122,0.07297629,68704.0,68696.0,0.07300408]
[1771688897963,0.07277715,68703.0,68696.0,0.07300408]
[1771688899561,0.07297626,68704.0,68696.0,0.07300408]
[1771688902283,0.07277768,68703.0,68696.0,0.00022]
[1771688903066,0.07277808,68702.0,68696.0,0.00022]
[1771688903247,0.07297632,68704.0,68696.0,0.07300426]
[1771688904042,0.07297632,68704.0,68697.0,0.07278318]
[1771688905086,0.0002,68703.0,68697.0,0.07278318]
[1771688908514,0.0002,68703.0,68696.0,0.07300427]
[1771688911158,0.07297725,68703.0,68696.0,0.07300427]
[1771688911518,0.0002,68703.0,68696.0,0.07300427]
[1771688912057,0.07297707,68703.0,68696.0,0.00022]
[1771688912417,0.07297707,68703.0,68696.0,0.07300423]
[1771688912802,0.07297707,68703.0,68696.0,0.00022]
[1771688913157,0.07277878,68702.0,68695.0,0.025]
[1771688913451,0.07277836,68702.0,68695.0,0.025]
[1771688913660,0.07277836,68702.0,68695.0,0.09778541]
[1771688914075,0.07277836,68702.0,68695.0,0.025]
[1771688914366,0.07166836,68702.0,68694.0,0.07300623]
[1771688917867,0.02455352,68703.0,68690.0,0.00016]
[1771688918070,0.24180635,68706.0,68687.0,0.00022]
[1771688918071,0.07278819,68693.0,68687.0,0.00022]
[1771688918591,0.0727887,68692.0,68684.0,0.07279703]
[1771688918952,0.07278979,68691.0,68682.0,0.07301866]
[1771688919152,0.07278979,68691.0,68683.0,0.07279747]
[1771688919337,0.07278979,68691.0,68683.0,0.0727982]
[1771688920944,0.07279135,68690.0,68682.0,0.00033651]
[1771688921193,0.07278979,68691.0,68682.0,0.00033651]
[1771688921367,0.07278887,68692.0,68682.0,0.00033651]
[1771688921788,0.07279016,68691.0,68683.0,0.07279821]
[1771688922148,0.07278896,68692.0,68682.0,0.07313369]
[1771688922590,0.07278896,68692.0,68684.0,0.07279639]
[1771688923501,0.07278896,68692.0,68685.0,0.07279586]
[1771688923708,0.07278896,68692.0,68684.0,0.07279639]
[1771688923870,0.26124533,68694.0,68683.0,0.07279813]
[1771688924499,0.07279061,68691.0,68682.0,0.07313517]
[1771688924698,0.02361053,68690.0,68682.0,0.07313517]
[1771688925108,0.2376348,68691.0,68677.0,0.1748]
[1771688925316,0.07279582,68686.0,68677.0,0.07319352]
[1771688925485,0.02361053,68688.0,68677.0,0.07319352]
[1771688925694,0.0727968,68685.0,68677.0,0.07319352]
[1771688926270,0.0727968,68685.0,68682.0,0.00022]
[1771688927776,0.09640526,68688.0,68682.0,0.00022]
[1771688928096,0.07279629,68685.0,68682.0,0.00022]
[1771688928747,0.02361053,68688.0,68682.0,0.00022]
[1771688929167,0.31042491,68691.0,68682.0,0.00022]
[1771688929778,0.33403544,68691.0,68682.0,0.00022]
[1771688930297,0.33403544,68691.0,68683.0,0.07279821]
[1771688930640,0.33403544,68691.0,68684.0,0.07279706]
[1771688931753,0.26124533,68691.0,68684.0,0.072797]
[1771688932158,0.02361053,68691.0,68683.0,0.07279821]
[1771688932367,0.00016,68710.0,68707.0,0.07277276]
[1771688932566,0.00016,68710.0,68705.0,0.07248774]
[1771688932903,0.00016,68710.0,68703.0,0.07277674]
[1771688933373,0.07292971,68710.0,68702.0,0.07277774]
[1771688933539,0.07304628,68710.0,68702.0,0.07277774]
[1771688933753,0.07324628,68710.0,68702.0,0.07277774]
[1771688934605,0.00047657,68710.0,68703.0,0.07277689]
[1771688935448,0.07324619,68710.0,68702.0,0.07277778]
[1771688936043,0.07324619,68710.0,68702.0,0.07249062]
[1771688937398,0.00047657,68710.0,68703.0,0.07277683]
[1771688938934,0.07324643,68710.0,68702.0,0.07277773]
[1771688940479,0.07324643,68710.0,68702.0,0.07299773]
[1771688940868,0.0727708,68709.0,68702.0,0.07299773]
[1771688941455,0.0727708,68709.0,68702.0,0.00022]
[1771688941655,0.0733208,68709.0,68702.0,0.00022]
[1771688941875,0.2376348,68708.0,68688.0,0.02477472]
[1771688942051,0.2376348,68708.0,68691.0,0.07278973]
[1771688942052,0.02262279,68700.0,68691.0,0.07278973]
[1771688942239,0.02317279,68700.0,68693.0,0.07278682]
[1771688942488,0.00055,68700.0,68693.0,0.07278682]
[1771688945063,0.00055,68700.0,68695.0,0.07278541]
[1771688946635,0.00055,68700.0,68695.0,0.07264183]
[1771688946956,0.00055,68700.0,68694.0,0.07278652]
[1771688955015,0.00055,68700.0,68694.0,0.07300652]
[1771688955862,0.00075,68700.0,68694.0,0.07300652]
[1771688956997,0.07278153,68699.0,68693.0,0.00022]
[1771688957141,0.07333153,68699.0,68693.0,0.00022]
[1771688957339,0.00055,68699.0,68693.0,0.00022]
[1771688958169,0.00055,68699.0,68693.0,0.07300735]
[1771688958376,0.00055,68699.0,68693.0,0.00022]
[1771688958783,0.00055,68699.0,68693.0,0.07300708]
[1771688958987,0.00055,68699.0,68693.0,0.00022]
[1771688959621,0.07333168,68699.0,68693.0,0.00022]
[1771688960115,0.00055,68699.0,68693.0,0.000565]
[1771688960325,0.0733315,68699.0,68693.0,0.000565]
[1771688960541,0.07278245,68698.0,68693.0,0.000565]
[1771688960722,0.00055,68698.0,68693.0,0.000565]
[1771688962125,0.00055,68698.0,68693.0,0.0733525]
[1771688962304,0.00055,68698.0,68693.0,0.09665693]
[1771688962631,0.00055,68698.0,68694.0,0.07278651]
[1771688962981,0.29136772,68710.0,68693.0,0.07335228]
[1771688963177,0.07289325,68731.0,68720.0,0.07275842]
[1771688963379,0.07289325,68731.0,68722.0,0.07275654]
[1771688964009,0.07290867,68730.0,68722.0,0.07275654]
[1771688964209,0.00016,68730.0,68722.0,0.07275654]
[1771688964409,0.00016,68730.0,68722.0,0.07275683]
[1771688965362,0.07290906,68730.0,68722.0,0.07275683]
[1771688965568,0.00016,68730.0,68722.0,0.07275683]
[1771688965934,0.00016,68730.0,68722.0,0.07275612]
[1771688966786,0.00016,68730.0,68723.0,0.0727557]
[1771688966975,0.07290847,68730.0,68721.0,0.07275696]
[1771688967774,0.07275667,68723.0,68714.0,0.07276461]
[1771688968002,0.07275447,68725.0,68716.0,0.0727632]
[1771688968222,0.07275447,68725.0,68717.0,0.07276142]
[1771688968769,0.25927933,68727.0,68718.0,0.07276031]
[1771688968945,0.00016,68730.0,68721.0,0.07275703]
[1771688969097,0.00016,68730.0,68723.0,0.07275518]
[1771688969508,0.0729087,68730.0,68720.0,0.07275694]
[1771688969924,0.23570391,68730.0,68720.0,0.07275694]
[1771688970296,0.07275145,68728.0,68717.0,0.09606616]
[1771688970556,0.07274973,68729.0,68717.0,0.02330443]
[1771688970755,0.07274973,68729.0,68719.0,0.07275923]
[1771688971076,0.0727495,68729.0,68721.0,0.0727571]
[1771688972016,0.49518325,68730.0,68722.0,0.07275688]
[1771688972874,0.49518325,68730.0,68721.0,0.0727571]
[1771688973977,0.07274973,68729.0,68721.0,0.0727571]
[1771688974179,0.07274973,68729.0,68713.0,0.29106391]
[1771688974180,0.07275328,68726.0,68713.0,0.29106391]
[1771688974379,0.16279521,68723.0,68717.0,0.07276133]
[1771688974580,0.09671439,68726.0,68717.0,0.07276133]
[1771688974785,0.07275396,68725.0,68717.0,0.07276133]
[1771688975475,0.02396111,68724.0,68713.0,0.07276619]
[1771688975915,0.072756,68723.0,68713.0,0.07276619]
[1771688976417,0.23555121,68723.0,68713.0,0.07276619]
[1771688976828,0.23555121,68723.0,68714.0,0.07276537]
[1771688977032,0.23555121,68723.0,68715.0,0.07276392]
[1771688977384,0.16279521,68723.0,68716.0,0.07276319]
[1771688978030,0.16279521,68723.0,68713.0,0.07276625]
[1771688978329,0.23555198,68723.0,68715.0,0.07276429]
[1771688978688,0.23555198,68723.0,68714.0,0.07276444]
[1771688978689,0.07275691,68722.0,68714.0,0.07276444]
[1771688978881,0.23575198,68723.0,68714.0,0.07276444]
[1771688979232,0.07275811,68721.0,68714.0,0.07276444]
[1771688979609,0.23575198,68723.0,68714.0,0.07276444]
[1771688979982,0.16279522,68730.0,68712.0,0.02423941]
[1771688980228,0.16279522,68730.0,68724.0,0.07275448]
[1771688980426,1e-08,68730.0,68724.0,0.07275448]
[1771688981276,1e-08,68730.0,68724.0,0.07275445]
[1771688981477,0.00100001,68730.0,68724.0,0.07275445]
[1771688981864,0.00100001,68730.0,68725.0,0.07275334]
[1771688982746,1e-08,68730.0,68725.0,0.07275334]
[1771688983044,0.25361803,68782.0,68720.0,0.31527462]
[1771688983045,0.25188469,68755.0,68731.0,0.02423941]
[1771688983299,0.0001017,68751.0,68750.0,0.07272727]
[1771688983497,0.0001017,68751.0,68740.0,0.16295521]
[1771688983498,0.00021834,68751.0,68748.0,0.09696864]
[1771688983692,0.0001665,68757.0,68751.0,0.07272604]
[1771688983854,0.0001227,68754.0,68751.0,0.07272554]
[1771688984417,0.0001227,68754.0,68750.0,0.07272712]
[1771688984558,0.0001227,68754.0,68750.0,0.02423941]
[1771688984760,0.0001227,68754.0,68752.0,0.07272508]
[1771688984965,0.00055507,68757.0,68749.0,0.02423941]
[1771688985248,0.00055507,68757.0,68752.0,0.07272484]
[1771688985454,0.00055507,68757.0,68752.0,0.09696425]
[1771688985662,0.00055507,68757.0,68752.0,0.02423941]
[1771688985807,0.00055507,68757.0,68752.0,0.09696455]
[1771688986214,0.00055507,68757.0,68748.0,0.072729]
[1771688986443,0.25188469,68756.0,68748.0,0.072729]
[1771688986870,0.25188469,68756.0,68750.0,0.07272715]
[1771688987084,0.00055507,68757.0,68752.0,0.07272442]
[1771688987370,0.00055507,68757.0,68750.0,0.07272628]
[1771688987686,0.25243976,68757.0,68750.0,0.07272628]
[1771688987908,0.25243976,68757.0,68751.0,0.07272585]
[1771688988986,0.25243976,68757.0,68752.0,0.07272489]
[1771688989407,0.25243976,68757.0,68753.0,0.07272375]
[1771688989550,0.16279521,68763.0,68750.0,0.00016]
[1771688989750,0.2519957,68759.0,68750.0,0.07327498]
[1771688989954,0.2519957,68758.0,68750.0,0.07327498]
[1771688990374,0.07271897,68758.0,68750.0,0.07327498]
[1771688990588,0.29087101,68759.0,68725.0,0.0001665]
[1771688990745,0.02496345,68737.0,68725.0,0.07291984]
[1771688990949,0.24746119,68737.0,68726.0,0.07275267]
[1771688991206,0.24746119,68737.0,68725.0,0.07291947]
[1771688991207,0.24746119,68737.0,68727.0,0.07275159]
[1771688991405,0.17472,68737.0,68727.0,0.0710516]
[1771688991552,0.17472,68737.0,68726.0,0.02423941]
[1771688991752,0.17472,68737.0,68725.0,0.0001665]
[1771688991753,0.17472,68737.0,68727.0,0.02423941]
[1771688992104,0.17472,68737.0,68727.0,0.02435605]
[1771688992310,0.23288324,68736.0,68720.0,0.00016]
[1771688992464,0.07275889,68721.0,68717.0,0.0002642]
[1771688992803,0.30564213,68721.0,68717.0,0.0002642]
[1771688993004,0.23288324,68721.0,68717.0,0.0002642]
[1771688993227,0.23288324,68724.0,68717.0,0.0002642]
[1771688993408,0.02496345,68725.0,68709.0,1e-08]
[1771688993564,0.30565285,68710.0,68709.0,1e-08]
[1771688993967,0.07276961,68710.0,68709.0,1e-08]
[1771688994167,0.07276874,68711.0,68709.0,1e-08]
[1771688994390,0.07276961,68710.0,68709.0,1e-08]
[1771688995238,0.00291708,68712.0,68709.0,1e-08]
[1771688996357,0.183349,68730.0,68709.0,1e-08]
[1771688996358,0.17476,68718.0,68709.0,1e-08]
[1771688996488,0.17476,68718.0,68709.0,0.02423942]
[1771688997517,0.17476,68718.0,68709.0,0.0970092]
[1771688998110,0.2475212,68718.0,68710.0,0.07276878]
[1771688998927,0.2475212,68718.0,68709.0,0.0970092]
[1771688999111,0.17476,68718.0,68709.0,0.0970092]
[1771689000308,0.0727632,68717.0,68709.0,0.02423942]
[1771689000507,0.02496345,68717.0,68702.0,0.0004842]
[1771689000866,0.29106796,68713.0,68702.0,0.00060077]
[1771689001066,0.07276663,68713.0,68702.0,0.00060077]
[1771689001212,0.07276663,68713.0,68702.0,0.07337785]
[1771689001417,0.07276863,68711.0,68702.0,0.07337785]
[1771689001819,0.40764324,68718.0,68702.0,0.00060077]
[1771689001820,0.23288324,68715.0,68702.0,0.00060077]
[1771689002028,0.06549513,68708.0,68702.0,0.00060077]
[1771689002822,0.23288324,68706.0,68700.0,0.00016]
[1771689003063,0.23288324,68705.0,68700.0,0.00016]
[1771689003270,0.07278064,68700.0,68695.0,0.00022]
[1771689003468,0.21538134,68704.0,68695.0,0.00022]
[1771689003469,0.07277923,68701.0,68695.0,0.00022]
[1771689003688,0.07278024,68700.0,68695.0,0.00022]
[1771689003894,0.30566348,68700.0,68695.0,0.00022]
[1771689004093,0.23288324,68699.0,68695.0,0.00022]
[1771689004854,0.30566348,68700.0,68693.0,0.00022]
[1771689005190,0.02496345,68704.0,68693.0,0.00022]
[1771689005394,0.03671334,68761.0,68690.0,8e-05]
[1771689005395,0.30566842,68696.0,68690.0,8e-05]
[1771689005604,0.02496345,68700.0,68690.0,8e-05]
[1771689005807,0.07278426,68697.0,68690.0,8e-05]
[1771689006184,0.23288324,68700.0,68690.0,8e-05]
[1771689006606,0.30566358,68700.0,68692.0,0.07278792]
[1771689007086,0.07277944,68701.0,68693.0,0.07278761]
[1771689007294,0.07277916,68701.0,68693.0,0.07278761]
[1771689007607,0.09774233,68702.0,68691.0,0.07278973]
[1771689007608,0.09774233,68702.0,68694.0,0.07278653]
[1771689007936,0.07278032,68700.0,68692.0,0.07278837]
[1771689008903,0.07278337,68698.0,68690.0,8e-05]
[1771689009086,0.24245625,68697.0,68690.0,8e-05]
[1771689009291,0.31523984,68697.0,68690.0,8e-05]
[1771689009487,0.07278489,68696.0,68690.0,8e-05]
[1771689009755,0.07278114,68701.0,68690.0,0.07287041]
[1771689009952,0.07278114,68701.0,68690.0,8e-05]
[1771689010353,0.0727813,68699.0,68691.0,0.07278973]
[1771689010544,0.29110551,68704.0,68691.0,0.07278973]
[1771689010545,0.07277493,68705.0,68691.0,0.02421225]
[1771689010700,0.24323404,68708.0,68696.0,0.2911361]
[1771689010701,0.07277191,68708.0,68696.0,0.2911361]
[1771689010909,0.07277191,68708.0,68699.0,0.07278036]
[1771689011332,0.07289051,68706.0,68697.0,0.07278338]
[1771689012326,0.07289051,68706.0,68698.0,0.07278228]
[1771689013882,0.07277507,68705.0,68697.0,0.07278308]
[1771689014275,0.07277507,68705.0,68696.0,0.07278239]
[1771689014276,0.07277507,68705.0,68698.0,0.07278214]
[1771689014849,0.07309054,68706.0,68698.0,0.07278214]
[1771689015046,0.00031642,68706.0,68699.0,0.07278105]
[1771689015360,0.00031642,68706.0,68698.0,0.07278214]
[1771689015361,0.0730904,68706.0,68698.0,0.07278214]
[1771689016562,0.1748,68709.0,68694.0,0.29114364]
[1771689016763,0.1748,68709.0,68703.0,0.07277682]
[1771689016764,0.17478786,68709.0,68703.0,0.07277682]
[1771689017167,0.17478786,68709.0,68704.0,0.07277573]
[1771689017944,0.17478786,68709.0,68703.0,0.07277695]
[1771689018160,0.17478786,68709.0,68704.0,0.07277542]
[1771689018358,0.17478786,68709.0,68703.0,0.07277695]
[1771689019415,0.17478786,68709.0,68686.0,0.43698873]
[1771689019659,0.17478786,68709.0,68700.0,0.29112027]
[1771689019935,0.17478786,68709.0,68704.0,0.07277525]
[1771689020441,0.07277361,68707.0,68699.0,0.07278108]
[1771689020635,0.24323404,68705.0,68694.0,0.46362392]
[1771689020938,0.24323404,68705.0,68692.0,0.02421225]
[1771689021083,0.24323404,68705.0,68699.0,0.07278027]
[1771689022290,0.4182219,68709.0,68697.0,0.02421225]
[1771689022494,0.4182219,68709.0,68702.0,0.0727778]
[1771689022713,0.4909927,68709.0,68702.0,0.0727778]
[1771689023109,0.4182219,68709.0,68702.0,0.0727778]
[1771689023365,0.17498786,68709.0,68702.0,0.0727778]
[1771689024345,0.24775878,68709.0,68701.0,0.07277879]
[1771689024551,0.24775878,68709.0,68700.0,0.07277981]
[1771689025544,0.24775878,68709.0,68701.0,0.07277826]
[1771689027458,0.17498786,68709.0,68702.0,0.07277737]
[1771689027886,0.17498786,68709.0,68701.0,0.07299899]
[1771689027887,0.2477587,68709.0,68701.0,0.07299899]
[1771689028290,0.2477587,68709.0,68701.0,0.00022]
[1771689028291,0.00026786,68709.0,68701.0,0.00022]
[1771689028609,0.07278541,68696.0,68690.0,0.0003]
[1771689028816,0.24323404,68694.0,68690.0,0.0003]
[1771689029309,0.07278354,68697.0,68690.0,0.0003]
[1771689030742,0.31601965,68695.0,68690.0,0.0003]
[1771689030948,0.07278656,68694.0,68690.0,0.0003]
[1771689031159,0.31601981,68695.0,68690.0,0.0003]
[1771689031353,0.07278577,68695.0,68690.0,0.0003]
[1771689032744,0.24323404,68699.0,68690.0,0.0003]
[1771689034497,0.07278253,68698.0,68690.0,0.0730888]
[1771689035250,0.07278253,68698.0,68691.0,0.07278958]
[1771689036616,0.07278353,68697.0,68690.0,0.0730906]
[1771689037171,0.07278241,68698.0,68690.0,0.0730906]
[1771689037380,0.24323404,68698.0,68690.0,0.0003]
[1771689037583,0.0727854,68696.0,68690.0,0.0003]
[1771689038336,0.1748,68702.0,68690.0,0.0003]
[1771689038489,0.07278067,68700.0,68691.0,0.07278774]
[1771689038698,0.07278067,68700.0,68692.0,0.072788]
[1771689038904,0.1748,68702.0,68690.0,0.07308973]
[1771689039092,0.1748,68702.0,68693.0,0.02386563]
[1771689039292,0.1748,68702.0,68695.0,0.07278531]
[1771689040538,0.0727811,68700.0,68691.0,0.0727891]
[1771689040738,0.3155062,68701.0,68691.0,0.0727891]
[1771689040968,0.0002,68696.0,68691.0,0.0727891]
[1771689041123,0.0002,68696.0,68690.0,0.0003]
[1771689044584,0.0002,68696.0,68690.0,0.07309039]
[1771689051217,0.0002,68696.0,68691.0,0.07278952]
[1771689057879,0.0002,68696.0,68691.0,0.28947258]
[1771689058085,0.0002,68696.0,68691.0,0.28847258]
[1771689058285,0.0002,68696.0,68692.0,0.21668306]
[1771689059596,0.24292706,68696.0,68692.0,0.21668306]
[1771689061321,0.0002,68696.0,68692.0,0.21668306]
[1771689061474,0.4002,68696.0,68692.0,0.21668306]
[1771689061909,0.17484,68704.0,68693.0,0.02386563]
[1771689062371,0.07277739,68703.0,68695.0,0.07278484]
[1771689062733,0.07277739,68703.0,68694.0,0.07278656]
[1771689063316,0.07277739,68703.0,68695.0,0.0727855]
[1771689064231,0.24761672,68704.0,68696.0,0.07278427]
[1771689065043,0.17484,68704.0,68697.0,0.07278328]
[1771689065691,0.24761618,68704.0,68697.0,0.07278328]
[1771689065837,0.07277727,68703.0,68696.0,0.07278427]
[1771689066177,0.07277727,68703.0,68694.0,0.07278591]
[1771689066323,0.07277727,68703.0,68695.0,0.07278493]
[1771689067097,0.07277831,68702.0,68695.0,0.07278493]
[1771689069056,0.07278194,68699.0,68690.0,0.07309015]
[1771689069373,0.26841395,68698.0,68691.0,0.07278868]
[1771689070220,0.26841395,68698.0,68682.0,0.02328314]
[1771689070221,0.07278934,68692.0,68682.0,0.02328314]
[1771689070347,0.07278794,68693.0,68682.0,0.02328314]
[1771689070574,0.07278794,68693.0,68683.0,0.07301732]
[1771689070778,0.07278651,68695.0,68686.0,0.07279424]
[1771689071378,0.07278699,68694.0,68686.0,0.07279424]
[1771689072392,0.07278636,68695.0,68686.0,0.07279445]
[1771689072595,0.07278198,68699.0,68684.0,0.02306314]
[1771689072824,0.07278366,68697.0,68688.0,0.07279203]
[1771689073825,0.07278454,68696.0,68688.0,0.07279203]
[1771689074996,0.0727844,68698.0,68686.0,0.00022]
[1771689075218,0.02466203,68705.0,68692.0,0.07278778]
[1771689075426,0.07278092,68700.0,68692.0,0.07278778]
[1771689076324,0.0727813,68699.0,68692.0,0.07278778]
[1771689077328,0.07278022,68700.0,68692.0,0.07278778]
[1771689077526,0.0002,68704.0,68701.0,0.07277824]
[1771689077737,0.0002,68704.0,68700.0,0.07277824]
[1771689077958,0.0002,68704.0,68700.0,0.07277966]
[1771689078483,0.0002,68704.0,68698.0,0.07278164]
[1771689078677,0.0002,68704.0,68701.0,0.07277912]
[1771689080085,0.0002,68704.0,68701.0,0.07377912]
[1771689082020,0.0002,68704.0,68701.0,0.07277912]
[1771689082569,0.0002,68704.0,68701.0,0.07377912]
[1771689082864,0.0002,68704.0,68700.0,0.0727799]
[1771689083106,0.0002,68704.0,68698.0,0.07278232]
[1771689083271,0.0002,68704.0,68701.0,0.001]
[1771689083635,0.0002,68704.0,68700.0,0.00016]
[1771689087393,0.07277702,68703.0,68696.0,0.00022]
[1771689088107,0.25099393,68704.0,68696.0,0.00022]
[1771689088542,0.07277909,68702.0,68696.0,0.00022]
[1771689088669,0.32357302,68702.0,68696.0,0.00022]
[1771689089639,0.25079393,68702.0,68696.0,0.00022]
[1771689089842,0.3235721,68702.0,68696.0,0.00022]
[1771689093008,0.25079393,68702.0,68696.0,0.00022]
[1771689093231,0.09743941,68703.0,68696.0,0.00022]
[1771689094344,0.0002,68704.0,68698.0,0.07278198]
[1771689094551,0.0002,68704.0,68696.0,0.07300339]
[1771689095570,0.07297666,68704.0,68696.0,0.07300339]
[1771689099131,0.0002,68704.0,68697.0,0.07278235]
[1771689099897,0.0002,68704.0,68698.0,0.07278228]
[1771689100791,0.0002,68704.0,68697.0,0.07278311]
[1771689102755,0.17510786,68709.0,68702.0,0.07277797]
[1771689102954,0.07277193,68708.0,68700.0,0.07277931]
[1771689103384,0.29752188,68704.0,68696.0,0.00022]
[1771689104390,0.37029793,68704.0,68696.0,0.07300357]
[1771689105739,0.27291034,68704.0,68697.0,0.07278277]
[1771689106139,0.17510786,68709.0,68696.0,0.09795144]
[1771689106347,0.24787935,68709.0,68696.0,0.02516806]
[1771689106644,0.07277196,68708.0,68700.0,0.07277928]
[1771689107138,0.07277553,68705.0,68697.0,0.07278314]
[1771689107355,0.0002,68704.0,68697.0,0.07278314]
[1771689107879,0.07352608,68704.0,68696.0,0.00022]
[1771689108200,0.00075,68704.0,68696.0,0.00022]
[1771689108382,0.07277792,68703.0,68696.0,0.00022]
[1771689108584,0.07332792,68703.0,68696.0,0.07300429]
[1771689109197,0.00055,68703.0,68696.0,0.07300429]